bitfinex-derivatives/quotes_BTCF0:USTF0_20240923
["timestamp","ask_amount","ask_price","bid_price","bid_amount"]
[1727078657104,0.439567,63481.0,63480.0,0.04716802]
[1727078657307,0.439567,63481.0,63476.0,0.06288316]
[1727078657308,0.07877,63479.0,63478.0,0.04716802]
[1727078657700,0.078772,63477.0,63476.0,0.06288316]
[1727078658401,0.078773,63476.0,63475.0,0.06288316]
[1727078658705,0.078773,63476.0,63474.0,0.14165916]
[1727078658905,0.3608,63475.0,63474.0,0.078776]
[1727078659208,0.439575,63475.0,63474.0,0.14167265]
[1727078659710,0.078776,63474.0,63473.0,0.06289665]
[1727078660315,0.078777,63473.0,63472.0,0.0628918]
[1727078661307,0.078777,63473.0,63471.0,0.078779]
[1727078661708,0.078777,63473.0,63472.0,0.06288491]
[1727078662308,0.078777,63473.0,63472.0,0.06287243]
[1727078662603,0.078782,63469.0,63467.0,0.07875394]
[1727078662806,0.3608,63468.0,63467.0,0.078785]
[1727078663006,0.439583,63468.0,63467.0,0.078785]
[1727078663402,0.439583,63468.0,63467.0,0.141644]
[1727078663999,0.440583,63468.0,63467.0,0.141644]
[1727078664199,0.3618,63468.0,63467.0,0.078785]
[1727078664409,0.3618,63468.0,63467.0,0.208785]
[1727078664714,0.3628,63468.0,63467.0,0.208785]
[1727078665203,0.3628,63468.0,63467.0,0.27159594]
[1727078665404,0.3628,63468.0,63467.0,0.078785]
[1727078665712,0.3628,63468.0,63467.0,0.681465]
[1727078666011,0.3628,63468.0,63467.0,0.208785]
[1727078669918,0.3628,63468.0,63467.0,0.078785]
[1727078670112,0.3628,63468.0,63467.0,0.208785]
[1727078670501,0.3628,63468.0,63467.0,0.078785]
[1727078670899,0.3618,63468.0,63467.0,0.078785]
[1727078671104,0.3628,63468.0,63467.0,0.078785]
[1727078671706,0.3628,63468.0,63467.0,0.14159341]
[1727078672105,0.441583,63468.0,63467.0,0.078785]
[1727078672307,0.441583,63468.0,63467.0,0.14159341]
[1727078672507,0.3628,63468.0,63466.0,0.06280841]
[1727078672707,0.3628,63468.0,63465.0,0.06280841]
[1727078673409,0.078786,63466.0,63465.0,0.06280841]
[1727078674113,0.078786,63466.0,63465.0,0.078787]
[1727078674817,0.079786,63466.0,63465.0,0.078787]
[1727078675317,0.080786,63466.0,63465.0,0.078787]
[1727078675513,0.002,63466.0,63465.0,0.078787]
[1727078676108,0.002,63466.0,63465.0,0.14160459]
[1727078678417,0.002,63466.0,63465.0,0.078787]
[1727078679235,0.002,63466.0,63465.0,0.14160459]
[1727078679610,0.002,63466.0,63465.0,0.078787]
[1727078680223,0.3608,63468.0,63465.0,0.13]
[1727078680414,0.3608,63468.0,63467.0,0.078785]
[1727078680717,0.3608,63468.0,63467.0,0.14165508]
[1727078681321,0.3618,63468.0,63467.0,0.14165508]
[1727078682018,0.4928,63468.0,63467.0,0.078785]
[1727078682238,0.4928,63468.0,63467.0,0.14165508]
[1727078682527,0.4928,63468.0,63463.0,0.07875394]
[1727078682528,0.4928,63468.0,63466.0,0.06287008]
[1727078683218,0.4928,63468.0,63467.0,0.06287008]
[1727078683427,0.4928,63468.0,63465.0,0.06287008]
[1727078683625,0.4918,63468.0,63465.0,0.06287008]
[1727078683926,0.4928,63468.0,63464.0,0.06287008]
[1727078684223,0.4928,63468.0,63465.0,0.06287008]
[1727078684619,0.4928,63468.0,63462.0,0.04721294]
[1727078684620,0.3608,63466.0,63462.0,0.04721294]
[1727078684820,0.20879,63463.0,63462.0,0.04721294]
[1727078685015,0.20879,63463.0,63459.0,0.06287008]
[1727078685016,0.20879,63463.0,63461.0,0.04721294]
[1727078685724,0.13,63463.0,63462.0,0.04719756]
[1727078685913,0.078791,63462.0,63461.0,0.04719756]
[1727078686114,0.078792,63461.0,63460.0,0.04719756]
[1727078686323,0.208792,63461.0,63460.0,0.04719756]
[1727078687025,0.078793,63460.0,63459.0,0.04719756]
[1727078687224,0.257593,63460.0,63459.0,0.04719756]
[1727078687915,0.078794,63459.0,63458.0,0.04719756]
[1727078688225,0.208794,63459.0,63458.0,0.04716836]
[1727078690023,0.209794,63459.0,63458.0,0.04716836]
[1727078690327,0.209794,63459.0,63458.0,0.25596436]
[1727078690328,0.001,63459.0,63458.0,0.25596436]
[1727078690641,0.002,63459.0,63458.0,0.208796]
[1727078692515,0.002,63459.0,63458.0,0.078796]
[1727078693623,0.002,63459.0,63458.0,0.208796]
[1727078694028,0.002,63459.0,63458.0,0.27166608]
[1727078694327,0.002,63459.0,63458.0,0.208796]
[1727078694623,0.002,63459.0,63458.0,0.287592]
[1727078694818,0.76366,63474.0,63458.0,0.58656535]
[1727078695018,0.75576,63474.0,63473.0,0.078777]
[1727078695220,0.75496,63474.0,63473.0,0.078777]
[1727078696529,0.76396,63474.0,63473.0,0.078777]
[1727078698142,0.77196,63474.0,63473.0,0.078777]
[1727078700925,0.3778,63474.0,63473.0,0.078777]
[1727078704137,0.3778,63474.0,63473.0,0.12590678]
[1727078705034,0.3778,63474.0,63473.0,0.078777]
[1727078706835,0.3778,63474.0,63472.0,0.04712978]
[1727078707031,0.3778,63474.0,63469.0,0.078781]
[1727078707032,0.078781,63471.0,63469.0,0.078781]
[1727078707234,0.13,63470.0,63469.0,0.1259238]
[1727078707939,0.208781,63470.0,63469.0,0.1259238]
[1727078708734,0.208781,63470.0,63469.0,0.0471428]
[1727078709132,0.208781,63470.0,63468.0,0.0471428]
[1727078709439,0.078784,63468.0,63466.0,0.078785]
[1727078709828,0.078784,63468.0,63467.0,0.0471345]
[1727078710235,0.078784,63468.0,63465.0,0.3608]
[1727078710236,0.3608,63468.0,63465.0,0.0471345]
[1727078710436,0.078786,63466.0,63465.0,0.0471345]
[1727078713041,0.078786,63466.0,63465.0,0.04714587]
[1727078713042,0.079786,63466.0,63465.0,0.04714587]
[1727078713236,0.079786,63466.0,63458.0,0.41146]
[1727078713237,0.078787,63465.0,63464.0,0.04714587]
[1727078713546,0.078787,63465.0,63463.0,0.04714587]
[1727078713547,0.078788,63464.0,63463.0,0.04714587]
[1727078713934,0.001,63466.0,63464.0,0.078788]
[1727078714231,0.001,63466.0,63464.0,0.1259472]
[1727078715038,0.079787,63466.0,63464.0,0.1259472]
[1727078715541,0.078787,63466.0,63464.0,0.1259472]
[1727078716240,0.078787,63466.0,63465.0,0.0471592]
[1727078717133,0.078787,63465.0,63464.0,0.078788]
[1727078719250,0.001,63466.0,63465.0,0.078787]
[1727078719633,0.3608,63468.0,63467.0,0.078785]
[1727078719936,0.3608,63468.0,63467.0,0.208785]
[1727078721040,0.3628,63468.0,63467.0,0.208785]
[1727078721945,0.3628,63468.0,63467.0,0.2716247]
[1727078722145,0.3658,63468.0,63467.0,0.2716247]
[1727078722344,0.005,63468.0,63467.0,0.208785]
[1727078723034,0.005,63468.0,63467.0,0.38321055]
[1727078724236,0.003,63468.0,63467.0,0.30466092]
[1727078725248,0.003,63468.0,63467.0,0.38336415]
[1727078725445,0.3608,63474.0,63467.0,0.38336415]
[1727078725446,0.3608,63474.0,63473.0,0.078777]
[1727078725943,0.078773,63477.0,63474.0,0.078776]
[1727078726145,0.3608,63475.0,63474.0,0.12599882]
[1727078727242,0.439575,63475.0,63474.0,0.12599882]
[1727078727847,0.078776,63474.0,63472.0,0.04722282]
[1727078728241,0.078776,63474.0,63471.0,0.12600182]
[1727078729249,0.083776,63474.0,63471.0,0.12600182]
[1727078729842,0.082776,63474.0,63471.0,0.12600182]
[1727078730142,0.085776,63474.0,63471.0,0.12600182]
[1727078730337,0.078778,63472.0,63471.0,0.04722282]
[1727078730543,0.007,63474.0,63468.0,0.06296392]
[1727078730853,0.078777,63473.0,63472.0,0.04723207]
[1727078731049,0.007,63474.0,63473.0,0.078777]
[1727078731351,0.007,63474.0,63473.0,0.12600907]
[1727078731651,0.007,63474.0,63473.0,0.078777]
[1727078732150,0.003,63474.0,63473.0,0.078777]
[1727078732855,0.3608,63475.0,63474.0,0.078776]
[1727078734348,0.3668,63475.0,63474.0,0.078776]
[1727078735059,0.3738,63475.0,63474.0,0.078776]
[1727078740451,0.013,63475.0,63474.0,0.078776]
[1727078742459,0.091775,63475.0,63474.0,0.078776]
[1727078742758,0.013,63475.0,63473.0,0.04721912]
[1727078742957,0.078776,63474.0,63473.0,0.04721912]
[1727078743358,0.078777,63473.0,63472.0,0.04721912]
[1727078743559,0.208777,63473.0,63472.0,0.04721912]
[1727078745258,0.216777,63473.0,63472.0,0.04721912]
[1727078745564,0.086777,63473.0,63472.0,0.04721912]
[1727078745865,0.086777,63473.0,63469.0,0.06296392]
[1727078746053,0.086777,63473.0,63470.0,0.06296392]
[1727078746452,0.093777,63473.0,63470.0,0.06296392]
[1727078746863,0.093777,63473.0,63471.0,0.07878]
[1727078747066,0.086777,63473.0,63471.0,0.07878]
[1727078747258,0.091777,63473.0,63471.0,0.14174392]
[1727078747450,0.078778,63472.0,63471.0,0.14174392]
[1727078747657,0.005,63473.0,63472.0,0.078778]
[1727078747857,0.011,63473.0,63472.0,0.078778]
[1727078748359,0.012,63473.0,63472.0,0.078778]
[1727078748559,0.012,63473.0,63472.0,0.14174192]
[1727078749157,0.013,63473.0,63472.0,0.14174192]
[1727078749356,0.006,63473.0,63472.0,0.14174192]
[1727078749564,0.014,63473.0,63472.0,0.14174192]
[1727078749865,0.008,63473.0,63472.0,0.14174192]
[1727078750059,0.015,63473.0,63472.0,0.14174192]
[1727078750257,0.015,63473.0,63472.0,0.078778]
[1727078750456,0.015,63473.0,63472.0,0.14177887]
[1727078751361,0.015,63473.0,63472.0,0.078778]
[1727078760958,0.015,63473.0,63472.0,0.15748123]
[1727078761361,0.015,63473.0,63472.0,0.23625923]
[1727078761960,0.015,63473.0,63472.0,0.2535012]
[1727078762675,0.015,63473.0,63472.0,0.15748123]
[1727078763181,0.015,63473.0,63472.0,0.078778]
[1727078763577,0.015,63473.0,63472.0,0.15748123]
[1727078763884,0.015,63473.0,63472.0,0.078778]
[1727078764282,0.093777,63473.0,63472.0,0.078778]
[1727078766784,0.078778,63472.0,63468.0,0.07870323]
[1727078767182,0.078778,63472.0,63467.0,0.07870323]
[1727078768186,0.082778,63472.0,63471.0,0.07878]
[1727078768688,0.081778,63472.0,63471.0,0.07878]
[1727078768884,0.084778,63472.0,63471.0,0.07878]
[1727078769190,0.088778,63472.0,63471.0,0.07878]
[1727078769482,0.085778,63472.0,63471.0,0.07878]
[1727078769689,0.091778,63472.0,63471.0,0.07878]
[1727078770282,0.091778,63472.0,63467.0,0.07870323]
[1727078770283,0.078783,63468.0,63467.0,0.07870323]
[1727078770491,0.078786,63466.0,63465.0,0.06303775]
[1727078770787,0.078787,63465.0,63464.0,0.06303775]
[1727078770986,0.078788,63464.0,63463.0,0.06303775]
[1727078771186,0.126788,63464.0,63463.0,0.06303775]
[1727078771492,0.078792,63461.0,63460.0,0.06303775]
[1727078772279,0.208792,63461.0,63460.0,0.04723558]
[1727078772479,0.078793,63460.0,63459.0,0.04723558]
[1727078772681,0.078793,63460.0,63454.0,0.0023639]
[1727078772682,0.078794,63459.0,63458.0,0.04723558]
[1727078772886,0.078796,63458.0,63457.0,0.04723558]
[1727078773088,0.078799,63455.0,63454.0,0.0023639]
[1727078773387,0.078799,63455.0,63454.0,0.06531383]
[1727078774385,0.078799,63455.0,63454.0,0.0023639]
[1727078775501,0.079799,63455.0,63454.0,0.0023639]
[1727078775981,0.125699,63455.0,63454.0,0.0023639]
[1727078776177,0.126699,63455.0,63454.0,0.0023639]
[1727078776379,0.126699,63455.0,63454.0,0.04952791]
[1727078776782,0.126699,63455.0,63450.0,0.06294993]
[1727078776783,0.078804,63452.0,63450.0,0.06294993]
[1727078777283,0.078804,63452.0,63449.0,0.27175593]
[1727078777892,0.0479,63455.0,63451.0,0.078803]
[1727078778095,0.0479,63455.0,63453.0,0.04715222]
[1727078778693,0.0469,63455.0,63453.0,0.04715222]
[1727078778888,0.0459,63455.0,63453.0,0.04715222]
[1727078779188,0.0459,63455.0,63452.0,0.04715222]
[1727078779393,0.0459,63455.0,63453.0,0.208801]
[1727078779900,0.0469,63455.0,63453.0,0.208801]
[1727078780106,0.0469,63455.0,63454.0,0.078801]
[1727078780107,0.001,63455.0,63454.0,0.078801]
[1727078780394,0.002,63455.0,63454.0,0.078801]
[1727078780704,0.002,63455.0,63454.0,0.177701]
[1727078781192,0.002,63455.0,63454.0,0.24065093]
[1727078781584,0.002,63455.0,63454.0,0.177701]
[1727078781893,0.3608,63462.0,63461.0,0.078792]
[1727078782189,0.3608,63462.0,63461.0,0.208792]
[1727078782984,0.3618,63462.0,63461.0,0.208792]
[1727078784194,0.3628,63462.0,63461.0,0.208792]
[1727078789395,0.3628,63462.0,63461.0,0.25591146]
[1727078789692,0.3628,63462.0,63461.0,0.208792]
[1727078789994,0.3628,63462.0,63461.0,0.25592841]
[1727078790192,0.3628,63462.0,63461.0,0.208792]
[1727078790993,0.3628,63462.0,63461.0,0.13]
[1727078791194,0.078793,63460.0,63459.0,0.04714401]
[1727078792202,0.078793,63460.0,63459.0,0.12593801]
[1727078792389,0.079793,63460.0,63459.0,0.078794]
[1727078792590,0.079793,63460.0,63459.0,0.12595039]
[1727078793000,0.079793,63460.0,63459.0,0.12595049]
[1727078793293,0.079793,63460.0,63459.0,0.078794]
[1727078793897,0.079793,63460.0,63459.0,0.12595786]
[1727078794310,0.078794,63459.0,63458.0,0.04716386]
[1727078794488,0.078794,63459.0,63456.0,0.04716386]
[1727078795186,0.078794,63459.0,63457.0,0.078796]
[1727078795692,0.079794,63459.0,63457.0,0.078796]
[1727078796494,0.078794,63459.0,63457.0,0.078796]
[1727078797096,0.078796,63458.0,63457.0,0.078796]
[1727078797795,0.078796,63458.0,63454.0,0.0989]
[1727078797796,0.078797,63457.0,63454.0,0.16184993]
[1727078798001,0.3608,63455.0,63454.0,0.0788]
[1727078798888,0.439599,63455.0,63454.0,0.0788]
[1727078800197,0.43958234,63462.0,63455.0,0.078799]
[1727078800392,0.3608,63462.0,63458.0,0.17723604]
[1727078801399,0.078794,63459.0,63458.0,0.04723604]
[1727078801606,0.078796,63458.0,63457.0,0.04723604]
[1727078802189,0.078797,63457.0,63456.0,0.04723821]
[1727078802394,0.72748,63462.0,63454.0,0.19294993]
[1727078802606,0.3608,63455.0,63454.0,0.13]
[1727078803216,0.439599,63455.0,63454.0,0.13]
[1727078804408,0.439599,63455.0,63454.0,0.19294993]
[1727078804710,0.439599,63455.0,63454.0,0.13]
[1727078809305,0.078799,63455.0,63454.0,0.13]
[1727078810209,0.3608,63462.0,63451.0,0.07878983]
[1727078810210,0.078797,63457.0,63455.0,0.078799]
[1727078810515,0.078797,63457.0,63456.0,0.208798]
[1727078810722,0.078794,63460.0,63459.0,0.078793]
[1727078811015,0.078794,63460.0,63459.0,0.14177058]
[1727078811902,0.078794,63460.0,63459.0,0.078793]
[1727078812205,0.081794,63460.0,63459.0,0.078793]
[1727078812909,0.081794,63460.0,63459.0,0.14177237]
[1727078814601,0.085794,63460.0,63459.0,0.14177237]
[1727078815201,0.085794,63460.0,63459.0,0.078793]
[1727078816812,0.007,63460.0,63459.0,0.078793]
[1727078820014,0.007,63460.0,63459.0,0.14178562]
[1727078821018,0.3608,63467.0,63459.0,0.078793]
[1727078821308,0.3608,63467.0,63466.0,0.208786]
[1727078822112,0.439585,63467.0,63466.0,0.208786]
[1727078822310,0.078788,63464.0,63463.0,0.06299697]
[1727078822503,0.3678,63467.0,63462.0,0.06299697]
[1727078822699,0.3678,63467.0,63466.0,0.078786]
[1727078824105,0.446585,63467.0,63466.0,0.078786]
[1727078824307,0.460585,63467.0,63466.0,0.078786]
[1727078825703,0.078787,63465.0,63464.0,0.06298047]
[1727078825910,0.078788,63464.0,63463.0,0.06298047]
[1727078826108,0.078788,63464.0,63462.0,0.14177147]
[1727078827818,0.084788,63464.0,63462.0,0.14177147]
[1727078828123,0.091788,63464.0,63463.0,0.07879]
[1727078828311,0.091788,63464.0,63463.0,0.14177047]
[1727078828621,0.091788,63464.0,63463.0,0.07879]
[1727078829822,0.085788,63464.0,63463.0,0.07879]
[1727078830121,0.092788,63464.0,63463.0,0.07879]
[1727078830519,0.093788,63464.0,63463.0,0.07879]
[1727078832325,0.07879,63463.0,63462.0,0.13]
[1727078833230,0.07879,63463.0,63462.0,0.19298047]
[1727078833524,0.08479,63463.0,63462.0,0.19298047]
[1727078833718,0.09179,63463.0,63462.0,0.208791]
[1727078834323,0.09179,63463.0,63462.0,0.27177147]
[1727078837824,0.09179,63463.0,63462.0,0.208791]
[1727078839714,0.45259,63463.0,63462.0,0.208791]
[1727078839918,0.3738,63463.0,63460.0,0.06298047]
[1727078840119,0.078792,63461.0,63460.0,0.06298047]
[1727078840336,0.078793,63460.0,63459.0,0.06304084]
[1727078840838,0.45338234,63463.0,63459.0,0.06304062]
[1727078841032,0.53137234,63463.0,63462.0,0.04728068]
[1727078841240,0.52437234,63463.0,63462.0,0.04728068]
[1727078841731,0.52437234,63463.0,63461.0,0.13]
[1727078841732,0.078791,63462.0,63461.0,0.13]
[1727078842025,0.078791,63462.0,63461.0,0.19304062]
[1727078843123,0.078795,63459.0,63456.0,0.13]
[1727078843631,0.005,63462.0,63460.0,0.078792]
[1727078843815,0.005,63462.0,63461.0,0.13]
[1727078843816,0.083791,63462.0,63461.0,0.13]
[1727078844021,0.089791,63462.0,63461.0,0.13]
[1727078844221,0.084791,63462.0,63461.0,0.13]
[1727078844421,0.3608,63463.0,63461.0,0.13]
[1727078844724,0.50142195,63470.0,63464.0,0.078788]
[1727078844725,0.07878234,63468.0,63464.0,0.078788]
[1727078844924,0.15756534,63468.0,63467.0,0.13]
[1727078845424,0.078786,63466.0,63464.0,0.14182289]
[1727078845728,0.078786,63466.0,63465.0,0.13]
[1727078845930,0.078786,63466.0,63465.0,0.208787]
[1727078846140,0.078786,63466.0,63465.0,0.27182189]
[1727078846826,0.087786,63466.0,63465.0,0.27182189]
[1727078847523,0.087786,63466.0,63465.0,0.14182189]
[1727078847723,0.087786,63466.0,63465.0,0.27182189]
[1727078848023,0.097786,63466.0,63465.0,0.27182189]
[1727078849130,0.097786,63466.0,63465.0,0.208787]
[1727078850324,0.097786,63466.0,63465.0,0.27182189]
[1727078854239,0.097786,63466.0,63465.0,0.208787]
[1727078857439,0.097786,63466.0,63465.0,0.13]
[1727078859040,0.078788,63464.0,63463.0,0.06303489]
[1727078859433,0.078788,63464.0,63463.0,0.14182489]
[1727078859633,0.078788,63464.0,63463.0,0.07879]
[1727078860239,0.085788,63464.0,63463.0,0.07879]
[1727078860538,0.093788,63464.0,63463.0,0.07879]
[1727078861037,0.015,63464.0,63463.0,0.07879]
[1727078862447,0.015,63464.0,63463.0,0.14181332]
[1727078863245,0.015,63464.0,63463.0,0.07879]
[1727078867339,0.015,63464.0,63463.0,0.14181224]
[1727078868446,0.015,63464.0,63463.0,0.22181224]
[1727078869243,0.015,63464.0,63463.0,0.15879]
[1727078870846,0.093788,63464.0,63463.0,0.15879]
[1727078871663,0.078792,63461.0,63460.0,0.07877916]
[1727078871967,0.078792,63461.0,63460.0,0.15877916]
[1727078873259,0.082792,63461.0,63460.0,0.33379955]
[1727078873464,0.087792,63461.0,63460.0,0.33379955]
[1727078874173,0.087792,63461.0,63460.0,0.25503582]
[1727078874760,0.087792,63461.0,63460.0,0.33387605]
[1727078875467,0.087792,63461.0,63460.0,0.33387582]
[1727078875962,0.087792,63461.0,63460.0,0.25505038]
[1727078877066,0.087792,63461.0,63460.0,0.33388242]
[1727078877256,0.087792,63461.0,63460.0,0.23762504]
[1727078877459,0.087792,63461.0,63460.0,0.158793]
[1727078878468,0.087792,63461.0,63460.0,0.25501996]
[1727078880159,0.087792,63461.0,63460.0,0.25501468]
[1727078880358,0.087792,63461.0,63460.0,0.15883204]
[1727078882273,0.087792,63461.0,63460.0,0.25500001]
[1727078882474,0.087792,63461.0,63460.0,0.07883204]
[1727078882675,0.009,63461.0,63460.0,0.0630612]
[1727078882976,0.13347659,63461.0,63460.0,0.0630612]
[1727078883172,0.133492,63461.0,63459.0,0.0630612]
[1727078883477,0.0547,63461.0,63460.0,0.04728457]
[1727078883659,0.08025054,63461.0,63460.0,0.04728457]
[1727078883863,0.078793,63460.0,63459.0,0.04728457]
[1727078884062,0.15753912,63460.0,63459.0,0.04728457]
[1727078884270,0.078793,63460.0,63459.0,0.04728457]
[1727078885177,0.443593,63460.0,63459.0,0.08]
[1727078885361,0.446593,63460.0,63459.0,0.08]
[1727078891479,0.085793,63460.0,63459.0,0.08]
[1727078891691,0.446593,63460.0,63459.0,0.08]
[1727078897380,0.446593,63460.0,63459.0,0.12728457]
[1727078898063,0.446593,63460.0,63459.0,0.08]
[1727078898477,0.446593,63460.0,63459.0,0.12723151]
[1727078902084,0.446593,63460.0,63459.0,0.2218552]
[1727078902381,0.446593,63460.0,63459.0,0.158794]
[1727078902981,0.085793,63460.0,63459.0,0.158794]
[1727078903687,0.007,63460.0,63459.0,0.158794]
[1727078904387,0.0065,63460.0,63459.0,0.158794]
[1727078908482,0.0065,63460.0,63459.0,0.33366676]
[1727078908786,0.3608,63467.0,63466.0,0.078786]
[1727078908995,0.078775,63475.0,63472.0,0.078778]
[1727078909190,0.078775,63475.0,63473.0,0.078777]
[1727078909987,0.078775,63475.0,63474.0,0.078776]
[1727078910386,0.085775,63475.0,63474.0,0.078776]
[1727078910888,0.090775,63475.0,63474.0,0.078776]
[1727078911096,0.012,63475.0,63474.0,0.078776]
[1727078911284,0.00236345,63486.0,63480.0,0.078767]
[1727078911588,0.00236345,63486.0,63482.0,0.078765]
[1727078911781,0.08112445,63486.0,63483.0,0.078764]
[1727078912093,0.08112445,63486.0,63485.0,0.08]
[1727078912299,0.00236345,63486.0,63485.0,0.158762]
[1727078912794,0.00236345,63486.0,63485.0,0.20592866]
[1727078913287,0.00236345,63486.0,63485.0,0.158762]
[1727078913683,0.02836345,63486.0,63485.0,0.158762]
[1727078913887,0.02836345,63486.0,63485.0,0.078762]
[1727078914089,0.02836345,63486.0,63485.0,0.158762]
[1727078914282,0.02836345,63486.0,63485.0,0.208762]
[1727078914283,0.02236345,63486.0,63485.0,0.208762]
[1727078914482,0.01736345,63486.0,63485.0,0.209762]
[1727078914682,0.01736345,63486.0,63485.0,1.643122]
[1727078914683,1e-08,63486.0,63485.0,1.643122]
[1727078914898,0.0037,63498.0,63485.0,1.61152666]
[1727078915083,0.440343,63501.0,63496.0,0.13]
[1727078915284,0.440343,63501.0,63500.0,0.13]
[1727078915285,0.439543,63501.0,63500.0,0.13]
[1727078916793,0.453543,63501.0,63500.0,0.131]
[1727078917696,0.466543,63501.0,63500.0,0.132]
[1727078917882,0.3878,63501.0,63500.0,0.210744]
[1727078918383,0.078728,63513.0,63508.0,0.078734]
[1727078918591,0.078728,63513.0,63511.0,0.13]
[1727078919794,0.082728,63513.0,63511.0,0.13]
[1727078919998,0.004,63513.0,63511.0,0.13]
[1727078920496,0.004,63513.0,63511.0,0.20973]
[1727078920700,0.004,63513.0,63511.0,0.132]
[1727078921002,0.00236299,63520.0,63518.0,0.078721]
[1727078921195,0.00236299,63520.0,63519.0,0.20872]
[1727078922097,0.078713,63525.0,63522.0,0.078716]
[1727078922402,0.078713,63525.0,63524.0,0.13]
[1727078923497,0.078713,63525.0,63524.0,0.131]
[1727078924193,0.078713,63525.0,63524.0,0.132]
[1727078926010,0.439508,63529.0,63526.0,0.078711]
[1727078926325,0.439508,63529.0,63528.0,0.13]
[1727078927007,0.3608,63529.0,63528.0,0.208709]
[1727078927591,0.3608,63529.0,63528.0,0.209709]
[1727078928199,0.3608,63529.0,63528.0,0.210709]
[1727078929501,0.439508,63529.0,63528.0,0.002]
[1727078930606,0.648216,63529.0,63528.0,0.002]
[1727078930789,0.648216,63529.0,63512.0,0.170028]
[1727078930790,1.56304,63529.0,63512.0,0.078728]
[1727078930996,1.56304,63529.0,63511.0,0.1337]
[1727078930997,0.078724,63516.0,63513.0,0.078727]
[1727078931300,0.078724,63516.0,63515.0,0.13]
[1727078932100,0.0472,63518.0,63510.0,0.13]
[1727078932101,0.07873,63511.0,63510.0,0.13]
[1727078932302,0.0472,63518.0,63506.0,0.078736]
[1727078932303,0.3608,63513.0,63506.0,0.13]
[1727078932501,0.078735,63507.0,63506.0,0.13]
[1727078933401,0.439535,63507.0,63506.0,0.13]
[1727078933606,0.439535,63507.0,63506.0,0.14]
[1727078935101,0.441535,63507.0,63506.0,0.135]
[1727078935797,0.441535,63507.0,63506.0,0.13]
[1727078935998,0.442535,63507.0,63506.0,0.13]
[1727078936609,0.441535,63507.0,63506.0,0.131]
[1727078936802,0.442535,63507.0,63506.0,0.132]
[1727078938100,0.442535,63507.0,63506.0,0.002]
[1727078938294,0.52127,63507.0,63506.0,0.002]
[1727078938492,0.52027,63507.0,63506.0,0.002]
[1727078939498,0.52027,63507.0,63506.0,0.001]
[1727078939808,0.078736,63506.0,63502.0,0.13]
[1727078940705,0.078736,63506.0,63505.0,0.13236182]
[1727078941304,0.079736,63506.0,63505.0,0.13336182]
[1727078941804,0.080736,63506.0,63505.0,0.13436182]
[1727078942313,0.002,63506.0,63505.0,0.13436182]
[1727078942608,0.002,63506.0,63505.0,0.21309882]
[1727078942801,0.001,63506.0,63505.0,0.21209882]
[1727078943005,0.001,63506.0,63505.0,0.21409882]
[1727078943207,0.3608,63507.0,63506.0,0.078736]
[1727078944406,0.3608,63507.0,63506.0,0.124236]
[1727078944612,0.439528,63513.0,63506.0,0.0465]
[1727078944810,0.3608,63513.0,63512.0,0.208729]
[1727078946101,0.3618,63513.0,63512.0,0.208729]
[1727078946609,0.3618,63513.0,63512.0,0.13]
[1727078946810,0.3618,63513.0,63507.0,0.00124]
[1727078946811,0.078735,63508.0,63507.0,0.00124]
[1727078947015,0.078735,63507.0,63506.0,0.002]
[1727078947423,0.078735,63507.0,63505.0,0.08109882]
[1727078948121,0.439535,63507.0,63505.0,0.08109882]
[1727078948420,0.078736,63506.0,63505.0,0.00236182]
[1727078948617,0.126836,63506.0,63505.0,0.00436182]
[1727078950409,0.3608,63507.0,63505.0,0.00636182]
[1727078950615,0.3608,63513.0,63505.0,0.00636182]
[1727078950811,0.3608,63513.0,63512.0,0.13]
[1727078951319,0.439527,63513.0,63512.0,0.13]
[1727078952413,0.440527,63513.0,63512.0,0.131]
[1727078953125,0.3628,63513.0,63512.0,0.210729]
[1727078954027,0.441527,63513.0,63512.0,0.132]
[1727078954517,0.3628,63513.0,63512.0,0.210729]
[1727078954914,0.3618,63513.0,63512.0,0.209729]
[1727078955118,0.3628,63513.0,63512.0,0.209729]
[1727078955325,0.3628,63513.0,63512.0,0.208729]
[1727078956111,0.441527,63513.0,63512.0,0.208729]
[1727078956317,0.441527,63513.0,63512.0,0.13]
[1727078957613,0.441527,63513.0,63512.0,0.208729]
[1727078960216,0.441527,63513.0,63512.0,0.13]
[1727078961522,0.441527,63513.0,63512.0,0.208729]
[1727078964424,0.441527,63513.0,63512.0,0.13]
[1727078966430,0.441527,63513.0,63512.0,0.17716666]
[1727078968123,0.441527,63513.0,63512.0,0.04716666]
[1727078969433,0.441527,63513.0,63512.0,0.078729]
[1727078969635,0.441527,63513.0,63512.0,0.12587369]
[1727078970424,0.441527,63513.0,63512.0,0.078729]
[1727078971230,0.3628,63513.0,63512.0,0.078729]
[1727078971527,0.3628,63513.0,63512.0,0.14169883]
[1727078971838,0.3628,63513.0,63512.0,0.078729]
[1727078974637,0.002,63513.0,63512.0,0.62980128]
[1727078974834,0.002,63513.0,63512.0,0.72490365]
[1727078975035,0.3608,63521.0,63520.0,0.078719]
[1727078975236,0.3608,63521.0,63520.0,0.208719]
[1727078975436,0.3608,63521.0,63520.0,0.25583878]
[1727078975632,0.439518,63521.0,63520.0,0.208719]
[1727078975831,0.439518,63521.0,63520.0,0.2558404]
[1727078976134,0.440518,63521.0,63520.0,0.209719]
[1727078977336,0.440518,63521.0,63520.0,0.132]
[1727078977529,0.440518,63521.0,63520.0,0.002]
[1727078977841,0.440518,63521.0,63520.0,0.132]
[1727078979229,0.440518,63521.0,63520.0,0.210719]